Cogmind - Beta 13 @@@ ROGUE MODE // 2024.05.08 @ 18:10:27 Player: b00n1n Result: Destroyed by OS-OT2(R) with Subdweller Shrapnel Launcher Performance ------------- Evolutions (0) 0 Regions Visited (3) 600 Robots Destroyed (26) 130 Value Destroyed (665) 665 Prototype IDs (2) 40 Alien Tech Used (0) 0 Bonus (0) 0 TOTAL SCORE: 1435 Bonus ------- None Cogmind --------- Core Integrity 0/250 Matter 295/300 Energy 155/160 System Corruption 0% Temperature Cool (0) Movement Walking (190) Ox1 Location -10/Subcaves Parts ------- > --- POWER (1) -------- Light Nuclear Core > --- PROPULSION (2) --- Carbon-fiber Leg > --- UTILITY (2) ------ Medium Storage Unit > --- WEAPON (2) ------- Beam Rifle Beam Rifle > --- INVENTORY (10) --- Light Nuclear Core Aluminum Leg Aluminum Leg Aluminum Leg Improved Terrain Scanner Terrain Scan Processor Targeting Computer Beam Rifle Peak State ------------ > --- POWER ------------ Light Nuclear Core > --- PROPULSION ------- Carbon-fiber Leg Carbon-fiber Leg > --- UTILITY ---------- Medium Storage Unit Improved Terrain Scanner > --- WEAPON ----------- Beam Rifle Pulse Rifle > --- INVENTORY -------- Light Nuclear Core Aluminum Leg Aluminum Leg Aluminum Leg Heat Sink Terrain Scan Processor Targeting Computer Beam Rifle Beam Rifle Beam Rifle [Rating: 19] Favorites ----------- Power Light Nuclear Core Engine Ion Engine Power Core Light Nuclear Core Propulsion Aluminum Leg Leg Aluminum Leg Wheel Wheel Utility Improved Terrain Scanner Device Improved Terrain Scanner Storage Medium Storage Unit Weapon Beam Rifle Energy Gun Beam Rifle Ballistic Gun Assault Rifle Build | -11 -10 -10 -10 ------- Run | Yrd Mat Min Sub Slots Evolved . | . . . . Power . | . . . . Propulsion . | . . . . Utility . | . . . . Weapon . | . . . . Parts Attached 61 | 7 39 13 2 Power 7 | 1 4 2 . Engine 3 | 1 2 . . Core 4 | . 2 2 . Reactor . | . . . . Propulsion 15 | 2 11 2 . Treads . | . . . . Leg 14 | 2 10 2 . Wheel 1 | . 1 . . Hover . | . . . . Flight . | . . . . Utility 27 | 2 17 8 . Device 24 | 1 15 8 . Storage 3 | 1 2 . . Processor . | . . . . Hackware . | . . . . Protection . | . . . . Artifact . | . . . . Weapon 12 | 2 7 1 2 Energy Gun 11 | 1 7 1 2 Energy Cannon . | . . . . Ballistic Gun 1 | 1 . . . Ballistic Cannon . | . . . . Launcher . | . . . . Special Weapon . | . . . . Impact Weapon . | . . . . Slashing Weapon . | . . . . Piercing Weapon . | . . . . Special Melee Weapon . | . . . . Unidentified Prototypes . | . . . . Parts Lost 6 | . 2 . 4 Power . | . . . . Propulsion 2 | . 1 . 1 Utility 2 | . 1 . 1 Weapon 2 | . . . 2 Highest Loss Streak 4 | . 2 . 4 To Critical Strikes . | . . . . Average Slot Usage (%) 98 | . 98 100 85 Engine 4 | . 7 . . Core 9 | . 6 14 14 Leg 27 | . 27 28 28 Device 13 | . 13 14 14 Storage 14 | . 14 14 14 Energy Gun 27 | . 27 28 14 Naked Turns . | . . . . Heaviest Build 22 | 15 22 22 22 Greatest Support 30 | 20 20 30 30 Greatest Overweight (x) 1 | . 1 1 . Average Overweight (x) . | . . . . Largest Inventory Capacity 10 | 8 10 10 10 Average Capacity 9 | 7 8 10 10 Most Carried 10 | 8 10 10 10 Average Carried 8 | 4 8 9 9 Final Capacity 10 | 8 10 10 10 Final Carried 10 | 8 10 10 8 Class Distribution -------------------- 58% | Scavenger-Mutant 41% | Mutant Dominant Class ---------------- Scavenger-Mutant | -10/Materials Mutant | -10/Mines Mutant | -10/Subcaves Resources | -11 -10 -10 -10 ----------- Run | Yrd Mat Min Sub Matter Collected 776 | 203 421 152 . Remotely . | . . . . Salvage Created 794 | 10 509 275 . Parts 50 | 4 30 16 . Haulers Intercepted . | . . . . Recyclers Shooed 4 | 1 3 . . Parts Field Recycled . | . . . . Retrieved Matter . | . . . . Parts Self-Destructed . | . . . . Prevented . | . . . . Kills | -11 -10 -10 -10 ------- Run | Yrd Mat Min Sub Combat Hostiles Destroyed 24 | . 13 11 . Guns 23 | . 13 10 . Classes Destroyed 4 | 1 3 . . Tunneler 1 | 1 . . . Recycler 1 | . 1 . . Swarmer 9 | . 3 6 . Grunt 15 | . 10 5 . Best Kill Streak 4 | 1 3 4 . Combat Bots Only 4 | . 3 4 . Max Kills in Single Turn 2 | 1 2 2 . Gunslinging 1 | . 1 . . Exploded . | . . . . Melee . | . . . . Uniques/NPCs Destroyed . | . . . . Combat | -11 -10 -10 -10 -------- Run | Yrd Mat Min Sub Hostile Shots Fired 123 | . 76 38 9 Missed 31 | . 20 9 2 Damage Taken 1312 | . 678 323 311 Core 253 | . 137 72 44 Absorbed by Shields . | . . . . Regen/Repaired (Parts) 66 | . 66 . . Core Remaining (%) 100 | 100 . . . Volleys Fired 66 | 2 43 19 2 Largest 2 | 2 2 2 2 Hottest 119 | 70 105 119 112 Shots Fired 132 | 4 86 38 4 Gun 132 | 4 86 38 4 Cannon . | . . . . Launcher . | . . . . Special . | . . . . Kinetic 2 | 2 . . . Thermal 130 | 2 86 38 4 Explosive . | . . . . Electromagnetic . | . . . . Robot Hit Streak 9 | 3 9 9 7 Robot Miss Streak 3 | . 3 2 . Penetration Max . | . . . . Secondary Targets 4 | . 3 1 . Max Gunslinging Chain 1 | . 1 1 . Shots Hit Robots 88 | 3 55 26 4 Core Hits 45 | 2 27 15 1 Critical Kills . | . . . . Critical Parts Destroyed . | . . . . Critical Strikes 3 | . 2 1 . Burn 3 | . 2 1 . Melee Attacks . | . . . . Impact . | . . . . Slashing . | . . . . Piercing . | . . . . Sneak Attacks . | . . . . Combat Hostiles . | . . . . Follow-up Attacks . | . . . . Damage Inflicted 1256 | 35 683 480 58 Guns 1232 | 35 675 464 58 Cannons . | . . . . Explosions . | . . . . Melee . | . . . . Ramming 24 | . 8 16 . Kinetic 11 | 11 . . . Thermal 1221 | 24 675 464 58 Explosive . | . . . . Electromagnetic . | . . . . Impact . | . . . . Slashing . | . . . . Piercing . | . . . . Highest Corruption . | . . . . Average Corruption . | . . . . Corruption Purged . | . . . . Corruption Blocked . | . . . . Overload Shots . | . . . . Overflow Damage . | . . . . Projectiles . | . . . . Explosions . | . . . . Melee . | . . . . Knockbacks . | . . . . Impact . | . . . . Kinetic . | . . . . Secondary . | . . . . Self-Inflicted Damage . | . . . . Shots . | . . . . Rammed . | . . . . Targets Rammed 4 | . 1 3 . Kicked 4 | . 1 3 . Crushed . | . . . . Highest Temperature 266 | 18 266 261 . Average Temperature 84 | 10 79 95 . Received Heat Transfer 477 | . 342 135 . Effects 1 | . 1 . . Energy Bleed 1 | . 1 . . Siege Activations . | . . . . Robots Corrupted . | . . . . Combat Hostiles . | . . . . Parts Fried . | . . . . Impact Corruptions . | . . . . Robots Melted 1 | . . 1 . Combat Hostiles 1 | . . 1 . Parts Melted 6 | . 4 2 . Heat Transferred 3242 | 74 1873 1147 148 Parts Sabotaged . | . . . . Parts Stolen . | . . . . Parts Stripped . | . . . . Power Chain Reactions . | . . . . Alert | -11 -10 -10 -10 ------- Run | Yrd Mat Min Sub Peak Influence 256 | 5 256 170 . Initial 53 | . 3 53 . Average 93 | 2 119 61 . Maximum Alert Level 1 | . 1 . . Low Security (%) 95 | 100 93 100 . Level 1 4 | . 6 . . Level 2 . | . . . . Level 3 . | . . . . Level 4 . | . . . . Level 5 . | . . . . High Security . | . . . . Max Security . | . . . . Squads Dispatched 3 | . 2 1 . Investigation 2 | . 1 1 . Extermination . | . . . . Reinforcement 1 | . 1 . . Assault . | . . . . Garrison . | . . . . Intercept . | . . . . Searches Triggered . | . . . . Construction Impeded . | . . . . Haulers Reinforced . | . . . . Active Scanning Responses . | . . . . Cargo Convoy Interrupts . | . . . . Stealth | -11 -10 -10 -10 --------- Run | Yrd Mat Min Sub Distress Signals 3 | . 2 1 . Communications Jammed . | . . . . Distress Signals . | . . . . Times Spotted 41 | . 27 12 2 Peak Tracking Total 4 | . 4 4 2 Tactical Retreats 3 | . 3 . . Traps | -11 -10 -10 -10 ------- Run | Yrd Mat Min Sub Traps Triggered 3 | . 3 . . Indirectly . | . . . . Trap Hack Attempts . | . . . . Triggered . | . . . . Disarmed . | . . . . Reprogrammed . | . . . . Reused . | . . . . Traps Extracted . | . . . . Installed . | . . . . Triggered . | . . . . Machines | -11 -10 -10 -10 ---------- Run | Yrd Mat Min Sub Machines Disabled . | . . . . Max in Single Turn . | . . . . Machines Repaired . | . . . . Machines Dismantled . | . . . . Machines Sabotaged . | . . . . Overloaded Fab Kills . | . . . . Hacking | -11 -10 -10 -10 --------- Run | Yrd Mat Min Sub Machines Accessed 8 | . 7 1 . Terminals 4 | . 4 . . Fabricators . | . . . . Repair Stations 1 | . 1 . . Recycling Units 2 | . 2 . . Scanalyzers . | . . . . Garrison Access . | . . . . Total Hacks 20 | . 19 1 . Successful 14 | . 13 1 . Failed 6 | . 6 . . Catastrophic 2 | . 2 . . Database Lockouts . | . . . . Manual . | . . . . Terminals 14 | . 14 . . Fabricators . | . . . . Repair Stations 3 | . 3 . . Recycling Units 2 | . 2 . . Scanalyzers . | . . . . Garrison Access . | . . . . Terminal Hacks 10 | . 9 1 . Prototype ID Bank 1 | . 1 . . Open Door 1 | . . 1 . Level Access Points 1 | . 1 . . Emergency Access Points 2 | . 2 . . Alert Level 1 | . 1 . . Locate Traps 1 | . 1 . . Assault Status 1 | . 1 . . Registered Components 1 | . 1 . . Zone Layout 1 | . 1 . . Fabricator Hacks . | . . . . Repair Station Hacks 2 | . 2 . . Scan Component 1 | . 1 . . Repair 1 | . 1 . . Recycling Unit Hacks 2 | . 2 . . Report Inventory 2 | . 2 . . Scanalyzer . | . . . . Garrison Access Hacks . | . . . . Unauthorized Hacks . | . . . . Terminals . | . . . . Fabricators . | . . . . Repair Stations . | . . . . Recycling Units . | . . . . Scanalyzers . | . . . . Garrison Access . | . . . . Data Cores Recovered . | . . . . Used . | . . . . Hacking Detections 5 | . 5 . . Full Trace Events . | . . . . Feedback Events . | . . . . Feedback Blocked . | . . . . Robot Schematics Acquired . | . . . . Robots Built . | . . . . Authchips . | . . . . Time . | . . . . Total Robot Build Rating . | . . . . Part Schematics Acquired . | . . . . Parts Built . | . . . . Authchips . | . . . . Time . | . . . . Total Part Build Rating . | . . . . Parts Repaired 1 | . 1 . . Time 26 | . 26 . . Parts Recycled . | . . . . Recycled Matter . | . . . . Retrieved Matter . | . . . . Retrieved Components . | . . . . Parts Scanalyzed . | . . . . Part Schematics Acquired . | . . . . Parts Damaged . | . . . . Bothacking | -11 -10 -10 -10 ------------ Run | Yrd Mat Min Sub Used RIF Installer . | . . . . Robots Hacked . | . . . . Non-combat . | . . . . Combat . | . . . . Robot Hacks Applied . | . . . . Relay Couplers Released . | . . . . Fabnet Peak Effective % . | . . . . Robots Rewired . | . . . . Allies Hacked . | . . . . Hacks Repelled . | . . . . Allies | -11 -10 -10 -10 -------- Run | Yrd Mat Min Sub Total Allies . | . . . . Largest Group . | . . . . Highest-Rated Group . | . . . . Highest-Rated Ally . | . . . . Total Orders . | . . . . Ally Attacks . | . . . . Total Damage . | . . . . Kills . | . . . . Allies Corrupted . | . . . . Allies Melted . | . . . . Intel | -11 -10 -10 -10 ------- Run | Yrd Mat Min Sub Robot Analysis Total . | . . . . Derelict Logs Recovered 1 | . . 1 . Drone Launches . | . . . . Drone Recoveries . | . . . . Exploration | -11 -10 -10 -10 ------------- Run | Yrd Mat Min Sub Turns Passed 1964 | 107 1197 649 11 Spaces Moved 1124 | 65 672 384 3 Core 1 | 1 . . . Treads . | . . . . Legs 1122 | 64 671 384 3 Wheels 1 | . 1 . . Hover . | . . . . Flight . | . . . . Fastest Speed 50 | 50 95 120 120 Average Speed 135 | 118 134 140 120 Slowest Speed 190 | 120 190 190 120 Overloaded Moves . | . . . . Propulsion Burnouts . | . . . . Robots Hopped . | . . . . Cave-ins Triggered . | . . . . Exploration Rate (%) 43 | 6 84 79 3 Regions Visited 3 Branch Regions 2 Pre-discovered Areas 2 | . . 2 . Known Exits Taken . | . . . . Unknown Exits Taken 3 | 1 1 1 . Scrap Searched 1 | . . 1 . Spaces Dug . | . . . . Terrain Destroyed . | . . . . Melee . | . . . . Projectile . | . . . . AOE . | . . . . Terrain Rammed . | . . . . Walls Destroyed . | . . . . Machines Disabled . | . . . . Actions | -11 -10 -10 -10 --------- Run | Yrd Mat Min Sub Total 1434 | 87 884 456 7 Wait 109 | 6 78 25 . Move 1121 | 64 671 383 3 Hop . | . . . . Pick Up 31 | 8 20 3 . Fast Attach 17 | 7 9 1 . Attach 5 | . 3 . 2 Detach 4 | . 3 1 . Swap 39 | . 27 12 . Drop 38 | . 29 9 . Fire 66 | 2 43 19 2 Melee . | . . . . Ram . | . . . . Kick 4 | . 1 3 . Crush . | . . . . Escape Stasis . | . . . . Rewire . | . . . . Trap . | . . . . Miscellaneous . | . . . . Route ------- -11/Scrapyard -10/Materials (discovered 5 exits: *Mat x3 / *Min x2) -10/Mines (discovered 3 exits: *Mat x2 / [*Sub]) -10/Subcaves History --------- Turn | Location | Event 5 | -11/Scrapyard | Discovered new exit (range 16) 108 | -11/Scrapyard | Entered Materials 311 | -10/Materials | Build established: Mutant 438 | -10/Materials | Repaired Med. Laser? 480 | -10/Materials | Discovered new exit (range 15) 500 | -10/Materials | Identified exit to Materials 685 | -10/Materials | Build established: Scavenger-Mutant 784 | -10/Materials | Core integrity fell below 50% 977 | -10/Materials | Discovered new exit (range 5) 1305 | -10/Materials | Entered Mines 1306 | -10/Mines | Learned location of Storage (-7) 1313 | -10/Mines | Met a Derelict bent on vengeance 1326 | -10/Mines | Discovered exit to Materials (range 12) 1430 | -10/Mines | Learned location of Recycling (-7) 1515 | -10/Mines | Met a Derelict shopkeep closing up shop 1653 | -10/Mines | A weapon hastily lodged in a ceiling crevice suddenly fell to the ground 1655 | -10/Mines | Discovered exit to Materials (range 7) 1833 | -10/Mines | Build established: Mutant 1936 | -10/Mines | Core integrity fell below 20% 1939 | -10/Mines | Discovered new exit (range 10) 1954 | -10/Mines | Entered Subcaves 1958 | -10/Subcaves | Ambushed by Subdwellers from Twisted Machinery 1965 | -10/Subcaves | Destroyed by OS-OT2(R) with Subdweller Shrapnel Launcher Last Messages --------------- (Burn). 01935_ Aluminum Leg melted. 01935_ G-34 Mercenary destroyed. 01938_ Searching scrap... 01938_ Found Sensor Array. 01938_ Found 38 Matter. 01939_ Acquired 10 matter. 01939_ EXIT=FOUND 01942_ Dropped Heat Sink. 01943_ Acquired 10 matter. 01944_ U-05 Engineer builds a Wall. LOCATION=UNKNOWN AMBIENT_HEAT=-10 GOAL=ESCAPE 01958_ OS-OT2(R) emerges from the Twisted Machinery. 01958_ Pulse Rifle destroyed. 01959_ Beam Rifle destroyed. 01961_ Carbon-fiber Leg destroyed. 01963_ Imp. Heat Sink destroyed. Map ----- +----------------------------------------------------+ | ?????????????????????????????????????????????????? | | ?????????????????????????????????????????????????? | | ?????????????????????????????????????????????????? | | ?????????????????????????????????????????????????? | | ?????????????????????????????????????????????????? | | ?????????????????????????????????????????????????? | | ?????????????????????????????????????????????????? | | ?????????????????????????????????????????????????? | | ?????????????????????????????????????????????????? | | ?????????????????????????????????????????????????? | | ?????????????????????????????????????????????????? | | ?????????????????????????????????????????????????? | | ?????????????????????????????????????????????????? | | ???????????????????? ????????????????????????????? | | ????????????????????"????????????????????????????? | | ????????????????????# ???????????????????????????? | | ???????????????????? ???????????????????????????? | | ????????????????????# #??????????????????????????? | | ???????????????????## ?###??????????????????????? | | ???????????????# ?## ## ##?????????????????????? | | ???????????????# #"""" " "####??????????????????? | | ???????????????# u #??????????????????? | | ???????????????? " ; ##?????????????????? | | ??????????????????#;; #?????????????????? | | ??????????????????#;; ##????????????????? | | ??????????????????# ; @ ;##???????????????? | | ???????????????# #???????????????? | | ???????????????# ; ;#???????????????? | | ??????????????# ; ;##???????????????? | | ?????????????# ## ;#????????????????? | | ?????????????# R ;#????????????????? | | ?????????????# ## ???????????????? | | ??????????????????# R"" ??????????????? | | ??????????????????# #"####?????????????? | | ??????????????????# ####????????????????? | | ????????????????? ##???????????????????? | | ???????????????? ####????????????????????? | | ???????????????? ????????????????????????? | | ???????????????? ????????????????????????? | | ?????????????????? #????????????????????????? | | ???????????????????? #?????????????????????????? | | ?????????????????????????????????????????????????? | | ?????????????????????????????????????????????????? | | ?????????????????????????????????????????????????? | | ?????????????????????????????????????????????????? | | ?????????????????????????????????????????????????? | | ?????????????????????????????????????????????????? | | ?????????????????????????????????????????????????? | | ?????????????????????????????????????????????????? | | ?????????????????????????????????????????????????? | +----------------------------------------------------+ Best States ------------- Heat Dissipation 39 Energy Generation 14 Energy Capacity 250 Matter Stores 300 Matter Capacity 350 Sight Range 16 Terrain Scan Range 16 Terrain Scan Density 10 Evasion (%) 55 Item Schematics ----------------- None Robot Schematics ------------------ None Fabricated ------------ Nothing Alien Tech Used ----------------- None Achievements -------------- None Challenges ------------ None Game ------ Seed GhostHardenedShifter Manual? 0 Play Time 00:28:50 Cumulative 67.9 hours Start 2024.05.08 @ 17:29:51 End 2024.05.08 @ 18:10:27 Sessions 2 Manual Loads 0 Difficulty Rogue Special Mode None Game No. 34 Rogue 34 Adventurer 0 Explorer 0 Win Type - Total 0 Types 0/0/0/0/0/0/0/0/0 Lore% 35 Gallery% 53 Achievement% 30 Wizard Run 0 Options --------- Layout 1 ASCII 1 Keyboard 1 Movement Vi Keybinds 0 Fullscreen 1 Font 24/Smallcaps Map View 50x35 Zoom Use 13% Tactical HUD 1 Map Filters NONE Filters NONE Steam 1 RUN: b155e83d-c824-40e2-a7d3-8bf8901b2698